fUST/lending_fUST_20250604
["ID","MTS","AMOUNT","RATE_DAILY","PERIOD"]
[364088835,1748994641834,-500.0,0.00021999,2]
[364088837,1748994641844,-408.08347866,0.00021999,2]
[364088839,1748994641854,-500.0,0.00021999,2]
[364088841,1748994641863,-500.0,0.00021999,2]
[364088843,1748994641872,-500.0,0.00021999,2]
[364088845,1748994641882,-500.0,0.00021999,2]
[364088847,1748994641891,-500.0,0.00021999,2]
[364088849,1748994641900,-500.0,0.00021999,2]
[364088851,1748994641910,-500.0,0.00021999,2]
[364088853,1748994641919,-582.65372841,0.00021999,2]
[364088855,1748994641929,-409.02410236,0.00021999,2]
[364088857,1748994641939,-211.87660772,0.00021999,2]
[364088859,1748994641949,-500.0,0.00021999,2]
[364088861,1748994641959,-500.0,0.00021999,2]
[364088863,1748994641969,-500.0,0.00021999,2]
[364088865,1748994641978,-500.0,0.00021999,2]
[364088867,1748994641987,-170.61862008,0.00021999,2]
[364088869,1748994641997,-500.0,0.00021999,2]
[364088871,1748994642006,-500.0,0.00021999,2]
[364088873,1748994642016,-500.0,0.00021999,2]
[364088875,1748994642026,-500.0,0.00021999,2]
[364088877,1748994642036,-500.0,0.00021999,2]
[364088879,1748994642046,-500.0,0.00021999,2]
[364088881,1748994642056,-500.0,0.00021999,2]
[364088883,1748994642066,-500.0,0.00021999,2]
[364088885,1748994642075,-500.0,0.00021999,2]
[364088887,1748994642086,-500.0,0.00021999,2]
[364088889,1748994642096,-500.0,0.00021999,2]
[364088891,1748994642105,-500.0,0.00021999,2]
[364088893,1748994642115,-500.0,0.00021999,2]
[364088895,1748994642125,-400.08981541,0.00021999,2]
[364088897,1748994642135,-500.0,0.00021999,2]
[364088899,1748994642144,-500.0,0.00021999,2]
[364088901,1748994642155,-500.0,0.00021999,2]
[364088903,1748994642165,-500.0,0.00021999,2]
[364088905,1748994642175,-500.0,0.00021999,2]
[364088907,1748994642185,-500.0,0.00021999,2]
[364088910,1748994642196,-500.0,0.00021999,2]
[364088912,1748994642207,-500.0,0.00021999,2]
[364088914,1748994642220,-500.0,0.00021999,2]
[364088916,1748994642231,-500.0,0.00021999,2]
[364088918,1748994642242,-500.0,0.00021999,2]
[364088920,1748994642252,-500.0,0.00021999,2]
[364088922,1748994642262,-500.0,0.00021999,2]
[364088924,1748994642272,-500.0,0.00021999,2]
[364088926,1748994642282,-511.43507349,0.00021999,2]
[364088928,1748994642291,-500.0,0.00021999,2]
[364088930,1748994642301,-500.0,0.00021999,2]
[364088932,1748994642311,-500.0,0.00021999,2]
[364088934,1748994642321,-462.56695808,0.00021999,2]
[364088936,1748994642331,-500.0,0.00021999,2]
[364088938,1748994642340,-500.0,0.00021999,2]
[364088940,1748994642350,-500.0,0.00021999,2]
[364088942,1748994642360,-500.0,0.00021999,2]
[364088944,1748994642370,-500.0,0.00021999,2]
[364088946,1748994642380,-500.0,0.00021999,2]
[364088948,1748994642390,-500.0,0.00021999,2]
[364088950,1748994642399,-500.0,0.00021999,2]
[364088953,1748994642409,-500.0,0.00021999,2]
[364088955,1748994642418,-500.0,0.00021999,2]
[364088956,1748994642428,-500.0,0.00021999,2]
[364088958,1748994642438,-500.0,0.00021999,2]
[364088961,1748994642448,-500.0,0.00021999,2]
[364088963,1748994642458,-500.0,0.00021999,2]
[364088964,1748994642468,-500.0,0.00021999,2]
[364088966,1748994642477,-500.0,0.00021999,2]
[364088969,1748994642487,-500.0,0.00021999,2]
[364088971,1748994642497,-392.60563126,0.00021999,2]
[364088973,1748994642507,-500.0,0.00021999,2]
[364088975,1748994642517,-376.02126873,0.00021999,2]
[364088977,1748994642526,-500.0,0.00021999,2]
[364088979,1748994642535,-500.0,0.00021999,2]
[364088981,1748994642546,-500.0,0.00021999,2]
[364088983,1748994642559,-500.0,0.00021999,2]
[364088985,1748994642569,-500.0,0.00021999,2]
[364088987,1748994642581,-500.0,0.00021999,2]
[364088989,1748994642592,-500.0,0.00021999,2]
[364088991,1748994642602,-646.75822023,0.00021999,2]
[364088993,1748994642611,-500.0,0.00021999,2]
[364088995,1748994642622,-500.0,0.00021999,2]
[364088997,1748994642632,-500.0,0.00021999,2]
[364088999,1748994642642,-500.0,0.00021999,2]
[364089001,1748994642651,-500.0,0.00021999,2]
[364089003,1748994642662,-500.0,0.00021999,2]
[364089005,1748994642672,-500.0,0.00021999,2]
[364089007,1748994642681,-500.0,0.00021999,2]
[364089009,1748994642691,-500.0,0.00021999,2]
[364089012,1748994642708,-500.0,0.00021999,2]
[364089014,1748994642721,-613.10942348,0.00021999,2]
[364089016,1748994642731,-500.0,0.00021999,2]
[364089018,1748994642741,-500.0,0.00021999,2]
[364089020,1748994642751,-500.0,0.00021999,2]
[364089022,1748994642761,-500.0,0.00021999,2]
[364089024,1748994642771,-500.0,0.00021999,2]
[364089026,1748994642780,-500.0,0.00021999,2]
[364089028,1748994642790,-500.0,0.00021999,2]
[364089030,1748994642801,-500.0,0.00021999,2]
[364089033,1748994642811,-500.0,0.00021999,2]
[364089035,1748994642822,-500.0,0.00021999,2]
[364089037,1748994642832,-500.0,0.00021999,2]
[364089039,1748994642842,-535.56758073,0.00021999,2]
[364089041,1748994642853,-500.0,0.00021999,2]
[364089043,1748994642863,-500.0,0.00021999,2]
[364089045,1748994642874,-500.0,0.00021999,2]
[364089047,1748994642884,-151.0,0.00022,7]
[364089050,1748994642894,-741.579054,0.00022,7]
[364089052,1748994642904,-151.0,0.00022,7]
[364089054,1748994642914,-163.53678,0.00022,7]
[364089056,1748994642923,-171.0,0.00022,2]
[364089058,1748994642933,-151.0,0.00022,9]
[364089060,1748994642943,-151.0,0.00022,7]
[364089062,1748994642952,-165292.74,0.00022,7]
[364089063,1748994642962,-37472.53,0.00022,2]
[364089066,1748994642972,-12670.76136593,0.00022,7]
[364089068,1748994642981,-613.26,0.00022191,2]
[364089070,1748994642991,-626.89,0.00022191,2]
[364089072,1748994643001,-990.65,0.00022191,2]
[364089074,1748994643011,-589.44,0.00022191,2]
[364089076,1748994643020,-678.59,0.00022191,2]
[364089078,1748994643032,-984.2,0.00022191,2]
[364089080,1748994643041,-583.2,0.00022191,2]
[364089082,1748994643051,-579.4,0.00022191,2]
[364089084,1748994643061,-1142.08,0.000222,7]
[364089086,1748994643071,-2417.84,0.000222,7]
[364089088,1748994643089,-3620.17415935,0.00022202,2]
[364089090,1748994643099,-694.5355004,0.00022219,2]
[364089092,1748994643110,-364.5107659,0.00022219,2]
[364089094,1748994643120,-151.0,0.000223,5]
[364089096,1748994643129,-613.26,0.00022465,2]
[364089098,1748994643139,-626.89,0.00022465,2]
[364089100,1748994643149,-990.65,0.00022465,2]
[364089102,1748994643159,-589.44,0.00022465,2]
[364089104,1748994643170,-678.59,0.00022465,2]
[364089106,1748994643187,-984.2,0.00022465,2]
[364089108,1748994643197,-583.2,0.00022465,2]
[364089110,1748994643207,-579.4,0.00022465,2]
[364089112,1748994643217,-153.0,0.00022493,2]
[364089114,1748994643227,-572.6068135,0.00022493,2]
[364089116,1748994643238,-153.0,0.00022493,2]
[364089118,1748994643249,-158.3659284,0.00022493,2]
[364089134,1748994643390,-572.6068135,0.00022493,2]
[364089136,1748994643401,-153.0,0.00022493,2]
[364089138,1748994643411,-572.6068135,0.00022493,2]
[364089140,1748994643420,-153.0,0.00022493,2]
[364089142,1748994643429,-572.6068135,0.00022493,2]
[364089144,1748994643440,-306.0,0.00022493,2]
[364089146,1748994643450,-176.5641048,0.00022493,2]
[364089148,1748994643459,-158.5442955,0.00022493,2]
[364089150,1748994643469,-306.0,0.00022493,2]
[364089152,1748994643479,-572.6068135,0.00022493,2]
[364089154,1748994643489,-154.2001919,0.00022493,2]
[364089156,1748994643499,-153.0,0.00022493,2]
[364089158,1748994643508,-459.2205728,0.00022493,2]
[364089160,1748994643518,-1144.9995506,0.00022493,2]
[364089162,1748994643528,-306.0,0.00022493,2]
[364089164,1748994643537,-158.5442955,0.00022493,2]
[364089166,1748994643547,-572.6068135,0.00022493,2]
[364089168,1748994643560,-176.5641048,0.00022493,2]
[364089171,1748994643570,-158.5442955,0.00022493,2]
[364089172,1748994643581,-176.5641048,0.00022493,2]
[364089175,1748994643591,-153.0,0.00022493,2]
[364089177,1748994643600,-572.6068135,0.00022493,2]
[364089179,1748994643610,-900.0,0.0002252,2]
[364089180,1748994643620,-158.5442955,0.00022521,2]
[364089183,1748994643630,-207.4,0.00022658,2]
[364089184,1748994643639,-151.0,0.000227,5]
[364089187,1748994643650,-613.39197676,0.00022739,2]
[364089189,1748994643659,-627.1098629,0.00022739,2]
[364089191,1748994643669,-990.65,0.00022739,2]
[364089192,1748994643678,-589.51035792,0.00022739,2]
[364089195,1748994643688,-678.74497633,0.00022739,2]
[364089197,1748994643698,-984.36,0.00022739,2]
[364089199,1748994643707,-583.28,0.00022739,2]
[364089201,1748994643717,-579.61,0.00022739,2]
[364089203,1748994643726,-151.0,0.000231,8]
[364089205,1748994643736,-19190.04592811,0.00023166,2]
[364089207,1748994643747,-364.5107659,0.00023178,2]
[364089209,1748994643757,-364.5107659,0.00023178,2]
[364089211,1748994643766,-364.5107659,0.00023178,2]
[364089213,1748994643775,-364.5107659,0.00023178,2]
[364089215,1748994643784,-364.5107659,0.00023178,2]
[364089217,1748994643794,-364.5107659,0.00023178,2]
[364089219,1748994643806,-160.0,0.00023182,3]
[364089221,1748994643816,-962.0,0.00023205,2]
[364089223,1748994643826,-2225.0,0.00023205,2]
[364089225,1748994643835,-709.0,0.00023205,2]
[364089227,1748994643845,-150.0,0.00023205,2]
[364089229,1748994643855,-153.0,0.00023315,2]
[364089231,1748994643864,-158.5442955,0.00023315,2]
[364089233,1748994643874,-176.5641048,0.00023315,2]
[364089234,1748994643883,-1075.7480811,0.00023315,2]
[364089236,1748994643892,-158.5442955,0.00023315,2]
[364089239,1748994643903,-176.5641048,0.00023315,2]
[364089240,1748994643912,-153.0,0.00023315,2]
[364089243,1748994643922,-153.0,0.00023315,2]
[364089244,1748994643932,-572.6068135,0.00023315,2]
[364089246,1748994643941,-158.5442955,0.00023315,2]
[364089249,1748994643951,-473.5844911,0.00023315,2]
[364089250,1748994643961,-158.5442955,0.00023315,2]
[364089253,1748994643971,-153.0,0.00023315,2]
[364089255,1748994643980,-153.0,0.00023315,2]
[364089257,1748994643990,-153.0,0.00023315,2]
[364089259,1748994643999,-352.9781038,0.00023342,2]
[364089261,1748994644009,-306.234842,0.00023342,2]
[364089262,1748994644018,-151.0,0.000234,5]
[364089264,1748994644028,-165292.74,0.000234,7]
[364089267,1748994644037,-372.0,0.00023446,2]
[364089268,1748994644046,-275.5,0.00023473,8]
[364089270,1748994644056,-37472.53,0.000235,2]
[364089273,1748994644066,-223.539625,0.000235,7]
[364089274,1748994644076,-151.0,0.000235,7]
[364089276,1748994644086,-151.0,0.000235,2]
[364089278,1748994644096,-151.0,0.000236,7]
[364089280,1748994644106,-741.579054,0.000236,7]
[364089282,1748994644115,-151.756118,0.000236,7]
[364089284,1748994644125,-151.0,0.000236,7]
[364089286,1748994644134,-212.86879254,0.000236,7]
[364089289,1748994644144,-151.0,0.000236,7]
[364089291,1748994644153,-2417.84,0.000236,7]
[364089292,1748994644163,-1602.0496,0.0002368,3]
[364089295,1748994644173,-1142.08,0.000237,7]
[364089297,1748994644183,-168.21129388,0.000237,2]
[364089298,1748994644192,-3620.17415935,0.000237,2]
[364089300,1748994644202,-12670.76136593,0.000237,3]
[364089302,1748994644212,-229.42821335,0.000237,3]
[364089304,1748994644221,-423.63107087,0.000237,3]
[364089306,1748994644231,-160.0,0.000237,3]
[364089308,1748994644240,-209357.86496907,0.000238,2]
[364089310,1748994644250,-151.0,0.000238,7]
[364089312,1748994644260,-151.0,0.000238,7]
[364089314,1748994644270,-151.0,0.000238,7]
[364089316,1748994644279,-151.0,0.000238,7]
[364089318,1748994644289,-741.579054,0.000238,7]
[364089320,1748994644298,-1336.54,0.000238,2]
[364089322,1748994644308,-151.0,0.000238,7]
[364089324,1748994644318,-151.0,0.000238,7]
[364089326,1748994644328,-153.0,0.000238,3]
[364089328,1748994644337,-153.0,0.000238,3]
[364089329,1748994644347,-153.0,0.000238,3]
[364089330,1748994644357,-153.0,0.000238,3]
[364089331,1748994644366,-151.0,0.000238,7]
[364089332,1748994644377,-151.0,0.000238,7]
[364089333,1748994644386,-151.0,0.000238,7]
[364089334,1748994644395,-151.0,0.000238,7]
[364089335,1748994644405,-211.9849,0.000238,7]
[364089336,1748994644415,-211.9849,0.000238,7]
[364089337,1748994644425,-151.0,0.000238,7]
[364089338,1748994644434,-307.55,0.000238,7]
[364089339,1748994644443,-307.55,0.000238,7]
[364089340,1748994644453,-207.619466,0.000238,7]
[364089341,1748994644462,-207.619466,0.000238,7]
[364089342,1748994644472,-151.0,0.000238,2]
[364089343,1748994644482,-452.364177,0.000238,7]
[364089344,1748994644492,-452.364177,0.000238,7]
[364089345,1748994644502,-168.393788,0.000238,7]
[364089346,1748994644512,-168.393788,0.000238,7]
[364089347,1748994644522,-733.91,0.00023823,7]
[364089348,1748994644531,-800.0,0.00023854,2]
[364089349,1748994644541,-647.9560946,0.00023884,2]
[364089350,1748994644551,-30000.0,0.000239,2]
[364089351,1748994644562,-151.0,0.000239,7]
[364089352,1748994644572,-151.0,0.000239,7]
[364089353,1748994644587,-151.0,0.000239,7]
[364089354,1748994644597,-1297.779594,0.000239,2]
[364089355,1748994644607,-151.0,0.000239,7]
[364089356,1748994644618,-151.0,0.000239,2]
[364089358,1748994644628,-875.10707019,0.000239,2]
[364089360,1748994644638,-800.0,0.00023912,2]
[364089362,1748994644647,-238.02326701,0.00023918,2]
[364089363,1748994644657,-733.91,0.00023923,4]
[364089365,1748994644667,-56657.24885199,0.00023923,2]
[364089367,1748994644677,-800.0,0.0002393,2]
[364089369,1748994644686,-800.0,0.00023952,2]
[364089371,1748994644695,-800.0,0.00023954,2]
[364089373,1748994644705,-1682.61960832,0.00024,2]
[364089375,1748994644714,-151.0,0.00024,14]
[364089377,1748994644724,-10085.59339964,0.00024,2]
[364089379,1748994644734,-200.73,0.00024,31]
[364089381,1748994644744,-200.73,0.00024,31]
[364089383,1748994644754,-200.73,0.00024,31]
[364089385,1748994644762,-200.73,0.00024,31]
[364089387,1748994644772,-200.73,0.00024,31]
[364089389,1748994644781,-200.73,0.00024,31]
[364089391,1748994644791,-200.73,0.00024,31]
[364089393,1748994644800,-200.73,0.00024,31]
[364089395,1748994644810,-200.73,0.00024,31]
[364089397,1748994644820,-200.73,0.00024,31]
[364089399,1748994644830,-200.73,0.00024,31]
[364089401,1748994644839,-200.73,0.00024,31]
[364089403,1748994644849,-200.73,0.00024,31]
[364089405,1748994644858,-200.73,0.00024,31]
[364089407,1748994644868,-200.73,0.00024,31]
[364089409,1748994644877,-200.73,0.00024,31]
[364089411,1748994644887,-638.0,0.00024,2]
[364089413,1748994644897,-229.42821335,0.00024,7]
[364089415,1748994644906,-423.63107087,0.00024,7]
[364089417,1748994644916,-158.13,0.00024,2]
[364089419,1748994644927,-733.91,0.00024023,6]
[364089421,1748994644936,-215.0738,0.00024027,2]
[364089423,1748994644946,-800.0,0.00024036,2]
[364089425,1748994644956,-800.0,0.00024049,2]
[364089427,1748994644966,-151.0,0.00024057,7]
[364089429,1748994644975,-151.0,0.00024057,7]
[364089431,1748994644985,-2200.0,0.00024057,2]
[364089433,1748994644994,-800.0,0.00024061,2]
[364089435,1748994645003,-21318.32940839,0.00024064,2]
[364089437,1748994645013,-800.0,0.0002407,2]
[364089439,1748994645023,-1974.054772,0.0002408,5]
[364089441,1748994645032,-200.0,0.0002409,9]
[364089443,1748994645041,-2000.0,0.000241,2]
[364089445,1748994645049,-2000.0,0.000241,2]
[364089447,1748994645059,-2000.0,0.000241,2]
[364089449,1748994645068,-2000.0,0.000241,2]
[364089451,1748994645078,-5046.1719631,0.000241,20]
[364089453,1748994645087,-1000.0,0.000241,5]
[364089455,1748994645097,-250.0,0.000241,30]
[364089457,1748994645106,-446.46,0.00024109,2]
[364089459,1748994645115,-446.46,0.00024109,2]
[364089461,1748994645125,-446.46,0.00024109,2]
[364089463,1748994645134,-446.46,0.00024109,2]
[364089465,1748994645143,-446.46,0.00024109,2]
[364089467,1748994645153,-446.46,0.00024109,2]
[364089469,1748994645163,-446.46,0.00024109,2]
[364089471,1748994645173,-446.46,0.00024109,2]
[364089473,1748994645183,-446.46,0.00024109,2]
[364089475,1748994645192,-446.46,0.00024109,2]
[364089477,1748994645202,-446.46,0.00024109,2]
[364089479,1748994645211,-446.46,0.00024109,2]
[364089481,1748994645221,-446.46,0.00024109,2]
[364089483,1748994645231,-446.46,0.00024109,2]
[364089485,1748994645241,-446.46,0.00024109,2]
[364089487,1748994645250,-446.46,0.00024109,2]
[364089489,1748994645260,-446.46,0.00024109,2]
[364089491,1748994645271,-446.46,0.00024109,2]
[364089493,1748994645280,-446.46,0.00024109,2]
[364089495,1748994645289,-446.46,0.00024109,2]
[364089497,1748994645298,-446.46,0.00024109,2]
[364089498,1748994645307,-446.46,0.00024109,2]
[364089501,1748994645316,-446.46,0.00024109,2]
[364089504,1748994645326,-446.60769785,0.00024109,2]
[364089505,1748994645335,-733.91,0.00024123,3]
[364089507,1748994645346,-1145.213627,0.00024137,2]
[364089509,1748994645355,-400.0,0.0002414,2]
[364089511,1748994645365,-151.0,0.00024146,7]
[364089513,1748994645375,-151.0,0.00024146,7]
[364089515,1748994645384,-151.0,0.00024146,7]
[364089517,1748994645394,-157.945674,0.00024146,7]
[364089519,1748994645404,-151.0,0.00024146,7]
[364089521,1748994645414,-151.0,0.00024146,7]
[364089523,1748994645423,-296.440304,0.00024146,7]
[364089525,1748994645433,-151.0,0.00024146,7]
[364089527,1748994645443,-151.0,0.00024146,7]
[364089529,1748994645452,-153.731127,0.00024146,7]
[364089531,1748994645462,-151.0,0.00024146,7]
[364089533,1748994645473,-151.0,0.00024146,7]
[364089536,1748994645483,-151.0,0.00024146,7]
[364089537,1748994645493,-151.0,0.00024146,7]
[364089539,1748994645502,-151.0,0.00024146,7]
[364089541,1748994645512,-151.0,0.00024146,7]
[364089543,1748994645522,-151.0,0.00024146,7]
[364089545,1748994645531,-151.0,0.00024146,7]
[364089556,1748994645626,-151.0,0.00024146,7]
[364089558,1748994645636,-151.0,0.00024146,7]
[364089560,1748994645646,-151.0,0.00024146,7]
[364089562,1748994645656,-151.0,0.00024146,7]
[364089564,1748994645667,-151.0,0.00024146,7]
[364089566,1748994645677,-277.106872,0.00024146,7]
[364089568,1748994645686,-154.074998,0.00024146,7]
[364089570,1748994645695,-151.0,0.00024146,7]
[364089572,1748994645705,-151.0,0.00024146,7]
[364089574,1748994645714,-151.0,0.00024146,7]
[364089576,1748994645724,-151.0,0.00024146,7]
[364089578,1748994645733,-151.0,0.00024146,7]
[364089579,1748994645743,-151.0,0.00024146,7]
[364089581,1748994645753,-151.0,0.00024146,7]
[364089584,1748994645763,-151.0,0.00024146,7]
[364089585,1748994645772,-151.0,0.00024146,7]
[364089587,1748994645782,-151.0,0.00024146,7]
[364089589,1748994645792,-151.0,0.00024146,7]
[364089591,1748994645801,-287.108546,0.00024146,7]
[364089593,1748994645812,-151.0,0.00024146,7]
[364089595,1748994645823,-151.0,0.00024146,7]
[364089597,1748994645833,-200.496115,0.00024146,7]
[364089599,1748994645843,-211.9849,0.00024146,7]
[364089601,1748994645854,-211.9849,0.00024146,7]
[364089603,1748994645864,-307.55,0.00024146,7]
[364089605,1748994645874,-307.55,0.00024146,7]
[364089607,1748994645884,-207.0,0.0002415,2]
[364089609,1748994645894,-151.0,0.0002415,7]
[364089611,1748994645903,-151.0,0.0002415,7]
[364089613,1748994645913,-151.0,0.0002415,7]
[364089615,1748994645922,-151.0,0.0002415,7]
[364089617,1748994645931,-151.0,0.0002415,7]
[364089619,1748994645941,-151.0,0.0002415,7]
[364089621,1748994645951,-151.0,0.0002415,7]
[364089623,1748994645960,-151.0,0.0002415,7]
[364089625,1748994645970,-151.0,0.0002415,7]
[364089627,1748994645979,-151.0,0.0002415,7]
[364089629,1748994645989,-151.0,0.0002415,7]
[364089631,1748994645999,-151.0,0.0002415,7]
[364089633,1748994646008,-257.67710087,0.0002415,7]
[364089635,1748994646017,-207.40239,0.0002415,7]
[364089637,1748994646027,-151.0,0.0002415,7]
[364089639,1748994646037,-151.0,0.0002415,7]
[364089641,1748994646046,-151.0,0.0002415,7]
[364089643,1748994646056,-151.0,0.0002415,7]
[364089645,1748994646065,-151.0,0.0002415,7]
[364089647,1748994646075,-151.0,0.0002415,7]
[364089649,1748994646084,-151.0,0.0002415,7]
[364089651,1748994646094,-151.0,0.0002415,7]
[364089653,1748994646104,-151.0,0.0002415,7]
[364089655,1748994646113,-151.0,0.0002415,7]
[364089657,1748994646123,-151.0,0.0002415,7]
[364089660,1748994646132,-163.407306,0.0002415,7]
[364089662,1748994646142,-163.407306,0.0002415,7]
[364089664,1748994646151,-163.407306,0.0002415,7]
[364089667,1748994646161,-163.407306,0.0002415,7]
[364089669,1748994646171,-163.407306,0.0002415,7]
[364089671,1748994646180,-163.407306,0.0002415,7]
[364089673,1748994646189,-163.407306,0.0002415,7]
[364089674,1748994646198,-163.407306,0.0002415,7]
[364089676,1748994646208,-163.407306,0.0002415,7]
[364089678,1748994646217,-163.407306,0.0002415,7]
[364089680,1748994646227,-163.407306,0.0002415,7]
[364089682,1748994646236,-163.407306,0.0002415,7]
[364089684,1748994646246,-163.407306,0.0002415,7]
[364089686,1748994646255,-163.407306,0.0002415,7]
[364089689,1748994646264,-163.407306,0.0002415,7]
[364089690,1748994646274,-163.407306,0.0002415,7]
[364089692,1748994646283,-163.407302,0.0002415,7]
[364089695,1748994646292,-225.496294,0.0002415,7]
[364089696,1748994646302,-225.496294,0.0002415,7]
[364089699,1748994646311,-225.496294,0.0002415,7]
[364089700,1748994646321,-225.496294,0.0002415,7]
[364089702,1748994646331,-225.496294,0.0002415,7]
[364089704,1748994646340,-225.496294,0.0002415,7]
[364089706,1748994646350,-225.496294,0.0002415,7]
[364089708,1748994646359,-225.496294,0.0002415,7]
[364089710,1748994646368,-225.496294,0.0002415,7]
[364089712,1748994646378,-225.496294,0.0002415,7]
[364089714,1748994646388,-225.496294,0.0002415,7]
[364089716,1748994646398,-225.496294,0.0002415,7]
[364089718,1748994646408,-225.496294,0.0002415,7]
[364089721,1748994646418,-225.496294,0.0002415,7]
[364089722,1748994646427,-225.496294,0.0002415,7]
[364089725,1748994646437,-225.496294,0.0002415,7]
[364089726,1748994646447,-225.496294,0.0002415,7]
[364089729,1748994646456,-225.496294,0.0002415,7]
[364089730,1748994646466,-225.496294,0.0002415,7]
[364089732,1748994646474,-225.496288,0.0002415,7]
[364089734,1748994646483,-158.122764,0.0002415,7]
[364089736,1748994646492,-158.122764,0.0002415,7]
[364089738,1748994646502,-158.122764,0.0002415,7]
[364089740,1748994646512,-158.122764,0.0002415,7]
[364089742,1748994646523,-158.122764,0.0002415,7]
[364089745,1748994646533,-158.122764,0.0002415,7]
[364089746,1748994646542,-158.122764,0.0002415,7]
[364089749,1748994646552,-158.122764,0.0002415,7]
[364089751,1748994646563,-158.122764,0.0002415,7]
[364089752,1748994646572,-158.122764,0.0002415,7]
[364089754,1748994646584,-158.122764,0.0002415,7]
[364089756,1748994646594,-158.122764,0.0002415,7]
[364089758,1748994646603,-158.122764,0.0002415,7]
[364089760,1748994646613,-158.122764,0.0002415,7]
[364089762,1748994646623,-158.122764,0.0002415,7]
[364089764,1748994646633,-158.122764,0.0002415,7]
[364089766,1748994646643,-158.122764,0.0002415,7]
[364089769,1748994646655,-158.122764,0.0002415,7]
[364089771,1748994646665,-158.122764,0.0002415,7]
[364089773,1748994646674,-158.122768,0.0002415,7]
[364089775,1748994646684,-205.081933,0.0002415,2]
[364089777,1748994646693,-205.081933,0.0002415,2]
[364089779,1748994646702,-205.081933,0.0002415,2]
[364089781,1748994646713,-205.081933,0.0002415,2]
[364089783,1748994646722,-205.081933,0.0002415,2]
[364089785,1748994646732,-205.081933,0.0002415,2]
[364089787,1748994646741,-205.081933,0.0002415,2]
[364089789,1748994646750,-205.081933,0.0002415,2]
[364089791,1748994646759,-205.081933,0.0002415,2]
[364089793,1748994646769,-205.081933,0.0002415,2]
[364089795,1748994646779,-205.081933,0.0002415,2]
[364089797,1748994646789,-205.081933,0.0002415,2]
[364089799,1748994646799,-205.081933,0.0002415,2]
[364089801,1748994646808,-205.081933,0.0002415,2]
[364089802,1748994646818,-205.081933,0.0002415,2]
[364089805,1748994646827,-205.081933,0.0002415,2]
[364089807,1748994646840,-205.081933,0.0002415,2]
[364089809,1748994646849,-205.081933,0.0002415,2]
[364089810,1748994646859,-205.081933,0.0002415,2]
[364089812,1748994646868,-205.081937,0.0002415,2]
[364089814,1748994646877,-400.79188243,0.0002415,2]
[364089816,1748994646886,-500.0,0.0002415,2]
[364089818,1748994646896,-500.0,0.0002415,2]
[364089820,1748994646905,-500.0,0.0002415,2]
[364089822,1748994646915,-500.0,0.0002415,2]
[364089824,1748994646925,-500.0,0.0002415,2]
[364089826,1748994646934,-510.72670588,0.0002415,2]
[364089828,1748994646943,-500.0,0.0002415,2]
[364089830,1748994646952,-500.0,0.0002415,2]
[364089832,1748994646962,-151.0,0.00024153,7]